[Event "26th OIBM 2023"]
[Site "Gmund am Tegernsee"]
[Date "2023.11.02"]
[Round "6.24"]
[White "Dolzhykova, Kateryna"]
[Black "Jerie, Sven"]
[Result "1-0"]
[ECO "C47"]
[WhiteElo "2336"]
[BlackElo "2055"]
[Annotator "ChessBase"]
[PlyCount "81"]
[EventDate "2023.10.04"]
[EventType "swiss"]
[EventCountry "GER"]
[SourceTitle "playchess.com"]
[Source "ChessBase"]
[SourceQuality "1"]
[TimeControl "40/5400+30:1800+30"]

1. e4 {[%emt 0:00:04]} e5 {[%emt 0:00:13]} 2. Nf3 {[%emt 0:00:06]} Nc6 {[%emt 0:00:23]} 3. d4 {[%emt 0:00:06]} exd4 {[%emt 0:00:39]} 4. Nxd4 {[%emt 0:00:08]} Nf6 {[%emt 0:01:00]} 5. Nc3 {[%emt 0:00:09]} Bb4 {[%emt 0:01:07]} 6. Nxc6 {[%emt 0:00:10]} bxc6 {[%emt 0:00:14]} 7. Qd4 {[%emt 0:00:46]} Qe7 {[%emt 0:05:47]} 8. f3 {[%emt 0:00:07]} Bc5 {[%emt 0:11:48]} 9. Qd3 {[%emt 0:01:36]} a5 {[%emt 0:08:35]} 10. Bg5 {[%emt 0:02:17]} Qe5 {[%emt 0:09:23]} 11. Qd2 {[%emt 0:05:09]} Qd4 {[%emt 0:06:46]} 12. O-O-O {[%emt 0:05:22]} Qxd2+ {[%emt 0:01:06]} 13. Bxd2 {[%emt 0:00:09]} O-O {[%emt 0:06:37]} 14. g4 {[%emt 0:01:47]} a4 {[%emt 0:14:56]} 15. a3 {[%emt 0:00:22]} d6 {[%emt 0:01:17]} 16. h4 {[%emt 0:01:34]} h5 {[%emt 0:03:46]} 17. g5 {[%emt 0:06:46]} Nd7 {[%emt 0:03:24]} 18. f4 {[%emt 0:02:57]} Ba6 {[%emt 0:00:40]} 19. Bh3 {[%emt 0:04:32]} Nb6 {[%emt 0:00:47]} 20. e5 {[%emt 0:03:29]} Bc8 {[%emt 0:09:13]} 21. Ne4 {[%emt 0:03:43]} Bxh3 {[%emt 0:03:05]} 22. Rxh3 {[%emt 0:00:12]} Nd7 {[%emt 0:01:25]} 23. Bc3 {[%emt 0:01:34]} Rfd8 {[%emt 0:04:14]} 24. exd6 {[%emt 0:00:25]} cxd6 {[%emt 0:00:11]} 25. Nxd6 {[%emt 0:00:33]} Nb6 {[%emt 0:01:11]} 26. Rhd3 {[%emt 0:01:54]} Rd7 {[%emt 0:03:22]} 27. Nf5 {[%emt 0:01:38]} Rxd3 {[%emt 0:00:50]} 28. Rxd3 {[%emt 0:00:03]} Bf8 {[%emt 0:00:32]} 29. Ng3 {[%emt 0:02:24]} g6 {[%emt 0:01:49]} 30. Ne4 {[%emt 0:00:45]} Nd5 {[%emt 0:00:33]} 31. Nf6+ {[%emt 0:00:50]} Nxf6 {[%emt 0:00:03]} 32. Bxf6 {[%emt 0:00:04]} Bg7 {[%emt 0:00:38]} 33. Rd6 {[%emt 0:03:31]} Rc8 {[%emt 0:00:30]} 34. Kd2 {[%emt 0:00:46]} Bf8 {[%emt 0:00:43]} 35. Rd4 {[%emt 0:00:28]} Bc5 {[%emt 0:00:38]} 36. Rxa4 {[%emt 0:01:52]} Bf2 {[%emt 0:00:13]} 37. Re4 {[%emt 0:00:25]} Bxh4 {[%emt 0:00:17]} 38. Ke2 {[%emt 0:00:06]} Bg3 {[%emt 0:00:58]} 39. Kf3 {[%emt 0:00:11]} h4 {[%emt 0:00:25]} 40. b4 {[%emt 0:00:50]} Ra8 {[%emt 0:00:19]} 41. a4 {[%emt 0:30:08]} 1-0

[Event "26th OIBM 2023"]
[Site "Gmund am Tegernsee"]
[Date "2023.11.02"]
[Round "6.25"]
[White "Khrapko, Marharyta"]
[Black "Chassard, Cedric"]
[Result "1-0"]
[ECO "B90"]
[WhiteElo "2170"]
[BlackElo "2326"]
[Annotator "ChessBase"]
[PlyCount "92"]
[EventDate "2023.10.04"]
[EventType "swiss"]
[EventCountry "GER"]
[SourceTitle "playchess.com"]
[Source "ChessBase"]
[SourceQuality "1"]
[TimeControl "40/5400+30:1800+30"]

1. e4 {[%emt 0:00:02]} c5 {[%emt 0:00:09]} 2. Nf3 {[%emt 0:00:01]} d6 {[%emt 0:00:06]} 3. d4 {[%emt 0:00:02]} cxd4 {[%emt 0:00:05]} 4. Nxd4 {[%emt 0:00:02]} Nf6 {[%emt 0:00:11]} 5. Nc3 {[%emt 0:00:01]} a6 {[%emt 0:00:06]} 6. Nb3 {[%emt 0:00:02]} e6 {[%emt 0:00:31]} 7. g4 {[%emt 0:00:03]} Be7 {[%emt 0:00:22]} 8. g5 {[%emt 0:00:29]} Nfd7 {[%emt 0:00:09]} 9. h4 {[%emt 0:00:16]} Nc6 {[%emt 0:03:42]} 10. Be3 {[%emt 0:00:51]} b5 {[%emt 0:00:53]} 11. f4 {[%emt 0:02:13]} Bb7 {[%emt 0:01:58]} 12. Bg2 {[%emt 0:03:29]} Na5 {[%emt 0:04:58]} 13. Nxa5 {[%emt 0:03:47]} Qxa5 {[%emt 0:00:42]} 14. a3 {[%emt 0:06:33]} Rc8 {[%emt 0:06:56]} 15. Bd2 {[%emt 0:06:09]} Qc7 {[%emt 0:08:30]} 16. Qe2 {[%emt 0:06:31]} Nb6 {[%emt 0:01:34]} 17. h5 {[%emt 0:05:38]} Nc4 {[%emt 0:06:38]} 18. O-O-O {[%emt 0:10:03]} Qc5 {[%emt 0:16:25]} 19. g6 {[%emt 0:04:17]} b4 {[%emt 0:09:38]} 20. Na4 {[%emt 0:03:18]} Qc6 {[%emt 0:12:53]} 21. Bxb4 {[%emt 0:04:16]} Ne3 {[%emt 0:07:04]} 22. gxf7+ {[%emt 0:00:55]} Kxf7 {[%emt 0:00:58]} 23. Nc3 {[%emt 0:01:35]} Nxd1 {[%emt 0:00:26]} 24. Rxd1 {[%emt 0:03:21]} Qc7 {[%emt 0:03:00]} 25. h6 {[%emt 0:08:49]} g6 {[%emt 0:02:50]} 26. f5 {[%emt 0:00:32]} e5 {[%emt 0:05:16]} 27. Rf1 {[%emt 0:07:00]} Bg5+ {[%emt 0:01:27]} 28. Kb1 {[%emt 0:00:01]} Bf4 {[%emt 0:00:20]} 29. Bh3 {[%emt 0:02:51]} Rce8 {[%emt 0:00:57]} 30. Rd1 {[%emt 0:00:34]} Rd8 {[%emt 0:00:34]} 31. Qg4 {[%emt 0:00:50]} Qe7 {[%emt 0:00:47]} 32. Bf1 {[%emt 0:02:43]} Qg5 {[%emt 0:01:37]} 33. Bc4+ {[%emt 0:05:36]} d5 {[%emt 0:02:11]} 34. Qe2 {[%emt 0:00:01]} gxf5 {[%emt 0:01:38]} 35. Nxd5 {[%emt 0:00:31]} Bxd5 {[%emt 0:01:57]} 36. Bxd5+ Rxd5 {[%emt 0:01:02]} 37. Rxd5 {[%emt 0:00:39]} fxe4 {[%emt 0:00:00]} 38. Rd7+ {[%emt 0:01:04]} Ke6 {[%emt 0:00:24]} 39. Re7+ {[%emt 0:01:03]} Kf5 {[%emt 0:00:33]} 40. Rf7+ {[%emt 0:00:40]} Kg6 {[%emt 0:00:31]} 41. Rg7+ {[%emt 0:30:08]} Kxh6 {[%emt 0:00:38]} 42. Rxg5 {[%emt 0:00:00]} Kxg5 {[%emt 0:00:11]} 43. Qxe4 {[%emt 0:00:00]} h5 {[%emt 0:00:16]} 44. Be7+ {[%emt 0:00:00]} Kg4 {[%emt 0:00:01]} 45. Bf6 {[%emt 0:00:00]} Rg8 {[%emt 0:00:05]} 46. Bxe5 {[%emt 0:00:00]} Rf8 {[%emt 0:00:03]} 1-0

[Event "26th OIBM 2023"]
[Site "Gmund am Tegernsee"]
[Date "2023.11.02"]
[Round "6.26"]
[White "Kulon, Klaudia"]
[Black "Acarbay, Algi"]
[Result "1-0"]
[ECO "B90"]
[WhiteElo "2319"]
[BlackElo "1934"]
[Annotator "ChessBase"]
[PlyCount "59"]
[EventDate "2023.10.04"]
[EventType "swiss"]
[EventCountry "GER"]
[SourceTitle "playchess.com"]
[Source "ChessBase"]
[SourceQuality "1"]
[TimeControl "40/5400+30:1800+30"]

1. e4 {[%emt 0:00:04]} c5 {[%emt 0:00:10]} 2. Nf3 {[%emt 0:00:05]} d6 {[%emt 0:00:15]} 3. d4 {[%emt 0:00:05]} cxd4 {[%emt 0:00:05]} 4. Nxd4 {[%emt 0:00:04]} Nf6 {[%emt 0:00:07]} 5. Nc3 {[%emt 0:00:07]} a6 {[%emt 0:00:13]} 6. Be3 {[%emt 0:00:24]} e5 {[%emt 0:01:21]} 7. Nb3 {[%emt 0:00:04]} Be7 {[%emt 0:00:28]} 8. f3 {[%emt 0:00:10]} Be6 {[%emt 0:00:23]} 9. Qd2 {[%emt 0:00:11]} h5 {[%emt 0:00:33]} 10. Nd5 {[%emt 0:00:20]} Nxd5 {[%emt 0:04:23]} 11. exd5 {[%emt 0:00:05]} Bf5 {[%emt 0:00:18]} 12. Be2 {[%emt 0:00:06]} Nd7 {[%emt 0:04:55]} 13. O-O {[%emt 0:00:10]} Rc8 {[%emt 0:06:57]} 14. c4 {[%emt 0:00:45]} h4 {[%emt 0:29:35]} 15. Na5 {[%emt 0:01:04]} Qc7 {[%emt 0:08:12]} 16. b4 {[%emt 0:00:47]} h3 {[%emt 0:10:08]} 17. g3 {[%emt 0:01:06]} b6 {[%emt 0:06:19]} 18. Nc6 {[%emt 0:01:08]} Bf6 {[%emt 0:00:30]} 19. g4 {[%emt 0:04:49]} Bg6 {[%emt 0:00:16]} 20. g5 {[%emt 0:00:19]} Bd8 {[%emt 0:01:06]} 21. Rae1 {[%emt 0:08:15]} O-O {[%emt 0:15:19]} 22. f4 {[%emt 0:02:05]} exf4 {[%emt 0:02:16]} 23. Bxf4 {[%emt 0:00:06]} Be4 {[%emt 0:05:10]} 24. Bg4 {[%emt 0:01:42]} Bg2 {[%emt 0:01:42]} 25. Re7 {[%emt 0:01:11]} Bxe7 {[%emt 0:00:50]} 26. Nxe7+ {[%emt 0:00:05]} Kh8 {[%emt 0:00:46]} 27. Qf2 {[%emt 0:00:15]} Nf6 {[%emt 0:00:51]} 28. gxf6 {[%emt 0:00:10]} Be4 {[%emt 0:00:42]} 29. Qh4+ {[%emt 0:00:27]} Bh7 {[%emt 0:00:06]} 30. fxg7+ {[%emt 0:00:05]} 1-0

[Event "26th OIBM 2023"]
[Site "Gmund am Tegernsee"]
[Date "2023.11.02"]
[Round "6.27"]
[White "Heinatz, Gundula"]
[Black "Forchert, Martin"]
[Result "0-1"]
[ECO "B13"]
[WhiteElo "2148"]
[BlackElo "2317"]
[Annotator "ChessBase"]
[PlyCount "100"]
[EventDate "2023.10.04"]
[EventType "swiss"]
[EventCountry "GER"]
[SourceTitle "playchess.com"]
[Source "ChessBase"]
[SourceQuality "1"]
[TimeControl "40/5400+30:1800+30"]

1. d4 {[%emt 0:00:07]} d5 {[%emt 0:00:06]} 2. Bf4 {[%emt 0:00:07]} c5 {[%emt 0:00:17]} 3. e3 {[%emt 0:00:15]} Nc6 {[%emt 0:00:11]} 4. Nc3 {[%emt 0:05:03]} cxd4 {[%emt 0:08:19]} 5. exd4 {[%emt 0:00:23]} Bf5 {[%emt 0:00:19]} 6. Nf3 {[%emt 0:09:43]} e6 {[%emt 0:03:31]} 7. Be2 {[%emt 0:05:18]} Bb4 {[%emt 0:04:15]} 8. O-O {[%emt 0:00:15]} Nf6 {[%emt 0:01:52]} 9. Nb5 {[%emt 0:06:14]} Rc8 {[%emt 0:08:42]} 10. c3 {[%emt 0:01:04]} Be7 {[%emt 0:00:06]} 11. a4 {[%emt 0:03:17]} a6 {[%emt 0:07:08]} 12. Na3 {[%emt 0:00:10]} Nh5 {[%emt 0:01:16]} 13. Be3 {[%emt 0:00:34]} Nf6 {[%emt 0:02:39]} 14. Ne5 {[%emt 0:09:55]} Nxe5 {[%emt 0:04:03]} 15. dxe5 {[%emt 0:00:01]} Nd7 {[%emt 0:00:07]} 16. Bd4 {[%emt 0:05:29]} Bg6 {[%emt 0:05:57]} 17. Nc2 {[%emt 0:03:02]} Nb8 {[%emt 0:00:46]} 18. f4 {[%emt 0:10:03]} Nc6 {[%emt 0:00:32]} 19. Bf2 {[%emt 0:00:51]} Be4 {[%emt 0:00:34]} 20. Ne3 {[%emt 0:01:39]} O-O {[%emt 0:00:53]} 21. Ng4 {[%emt 0:08:35]} Qd7 {[%emt 0:08:29]} 22. Kh1 {[%emt 0:01:44]} h5 {[%emt 0:09:26]} 23. Ne3 {[%emt 0:00:05]} g6 {[%emt 0:00:05]} 24. Nc4 {[%emt 0:01:14]} Rcd8 {[%emt 0:01:42]} 25. Nd2 {[%emt 0:00:53]} Bf5 {[%emt 0:00:06]} 26. Nf3 {[%emt 0:01:15]} Be4 {[%emt 0:01:25]} 27. Bb6 {[%emt 0:02:56]} Rc8 {[%emt 0:00:24]} 28. Qe1 {[%emt 0:01:59]} Kg7 {[%emt 0:06:54]} 29. Qf2 {[%emt 0:02:10]} Bxf3 {[%emt 0:06:09]} 30. Bxf3 {[%emt 0:00:07]} Bd8 {[%emt 0:00:13]} 31. Bc5 {[%emt 0:01:29]} Ne7 {[%emt 0:00:08]} 32. Rfd1 {[%emt 0:03:01]} Qc6 {[%emt 0:05:23]} 33. Bd6 {[%emt 0:00:11]} Re8 {[%emt 0:00:18]} 34. Bxe7 {[%emt 0:08:48]} Bxe7 {[%emt 0:00:21]} 35. f5 {[%emt 0:00:04]} exf5 {[%emt 0:01:42]} 36. Bxd5 {[%emt 0:00:07]} Qc7 {[%emt 0:00:37]} 37. Re1 {[%emt 0:02:41]} a5 {[%emt 0:03:26]} 38. Qf3 {[%emt 0:00:24]} Bc5 {[%emt 0:01:56]} 39. Qf4 {[%emt 0:04:29]} Qb6 {[%emt 0:03:08]} 40. Rab1 {[%emt 0:01:55]} Rcd8 {[%emt 0:00:20]} 41. c4 {[%emt 0:05:04]} Re7 {[%emt 0:03:52]} 42. h3 {[%emt 0:03:24]} Rde8 {[%emt 0:00:33]} 43. Re2 {[%emt 0:04:46]} Qc7 {[%emt 0:01:35]} 44. Rf1 {[%emt 0:09:44]} Rxe5 {[%emt 0:04:15]} 45. g4 {[%emt 0:01:02]} hxg4 {[%emt 0:00:55]} 46. Rxe5 {[%emt 0:01:24]} Rxe5 {[%emt 0:00:47]} 47. hxg4 {[%emt 0:00:20]} Bd6 {[%emt 0:00:13]} 48. Qf3 {[%emt 0:01:35]} Qe7 {[%emt 0:01:35]} 49. Kg2 {[%emt 0:06:06]} Re3 {[%emt 0:01:10]} 50. Qf2 {[%emt 0:01:04]} Re2 {[%emt 0:00:12]} 0-1

[Event "26th OIBM 2023"]
[Site "Gmund am Tegernsee"]
[Date "2023.11.02"]
[Round "6.28"]
[White "Cordes, Hans-Joerg"]
[Black "Mai, Philipp"]
[Result "1/2-1/2"]
[ECO "E81"]
[WhiteElo "2146"]
[BlackElo "2313"]
[Annotator "ChessBase"]
[PlyCount "95"]
[EventDate "2023.10.04"]
[EventType "swiss"]
[EventCountry "GER"]
[SourceTitle "playchess.com"]
[Source "ChessBase"]
[SourceQuality "1"]
[TimeControl "40/5400+30:1800+30"]

1. d4 {[%emt 0:00:04]} Nf6 {[%emt 0:00:08]} 2. c4 {[%emt 0:00:14]} g6 {[%emt 0:00:04]} 3. Nc3 {[%emt 0:00:09]} Bg7 {[%emt 0:00:07]} 4. e4 {[%emt 0:00:11]} d6 {[%emt 0:00:03]} 5. f3 {[%emt 0:00:22]} O-O {[%emt 0:00:15]} 6. Nge2 {[%emt 0:00:13]} a6 {[%emt 0:00:59]} 7. Be3 {[%emt 0:00:51]} b5 {[%emt 0:01:34]} 8. cxb5 {[%emt 0:01:32]} axb5 {[%emt 0:00:08]} 9. Nxb5 {[%emt 0:00:35]} c6 {[%emt 0:02:14]} 10. Na3 {[%emt 0:08:24]} Nbd7 {[%emt 0:01:53]} 11. Nc3 {[%emt 0:00:38]} e5 {[%emt 0:09:23]} 12. d5 {[%emt 0:23:09]} cxd5 {[%emt 0:09:01]} 13. Nxd5 {[%emt 0:00:16]} Bb7 {[%emt 0:07:04]} 14. Bc4 {[%emt 0:12:54]} Nxd5 {[%emt 0:30:45]} 15. Bxd5 {[%emt 0:00:13]} Bxd5 {[%emt 0:05:00]} 16. Qxd5 {[%emt 0:00:15]} Nf6 {[%emt 0:04:28]} 17. Qd2 {[%emt 0:01:44]} d5 {[%emt 0:00:39]} 18. Bc5 {[%emt 0:09:01]} Re8 {[%emt 0:01:09]} 19. exd5 {[%emt 0:00:30]} e4 {[%emt 0:08:13]} 20. O-O {[%emt 0:07:01]} exf3 {[%emt 0:00:27]} 21. gxf3 {[%emt 0:00:28]} Re5 {[%emt 0:01:52]} 22. Rad1 {[%emt 0:03:12]} Rxd5 {[%emt 0:00:45]} 23. Qc1 {[%emt 0:02:04]} Qd7 {[%emt 0:03:44]} 24. Nc4 {[%emt 0:04:35]} Qh3 {[%emt 0:02:22]} 25. Nb6 {[%emt 0:02:00]} Rh5 {[%emt 0:00:35]} 26. Qc2 {[%emt 0:01:07]} Re8 {[%emt 0:01:33]} 27. b4 {[%emt 0:00:26]} Rg5+ {[%emt 0:01:07]} 28. Kh1 {[%emt 0:02:06]} Nh5 {[%emt 0:01:19]} 29. Rf2 {[%emt 0:02:33]} Ng3+ {[%emt 0:04:42]} 30. Kg1 {[%emt 0:00:20]} Ne4+ {[%emt 0:02:16]} 31. Rg2 {[%emt 0:00:18]} Qxf3 {[%emt 0:00:08]} 32. Re1 {[%emt 0:03:19]} Rxg2+ {[%emt 0:01:48]} 33. Qxg2 {[%emt 0:00:06]} Qd3 {[%emt 0:00:16]} 34. Kh1 {[%emt 0:10:47]} f5 {[%emt 0:00:41]} 35. a4 {[%emt 0:01:24]} Bc3 {[%emt 0:00:31]} 36. Rf1 {[%emt 0:00:37]} Bd4 {[%emt 0:00:38]} 37. Bxd4 {[%emt 0:03:27]} Qxd4 {[%emt 0:00:04]} 38. Qa2+ {[%emt 0:00:07]} Kg7 {[%emt 0:00:42]} 39. Nc4 {[%emt 0:00:14]} Nc3 {[%emt 0:00:26]} 40. Qb3 {[%emt 0:01:20]} Re2 {[%emt 0:00:41]} 41. Nd6 {[%emt 0:30:47]} Qe5 {[%emt 0:16:14]} 42. Qf7+ {[%emt 0:00:00]} Kh6 {[%emt 0:00:04]} 43. Nxf5+ {[%emt 0:00:00]} gxf5 {[%emt 0:00:13]} 44. Qf8+ {[%emt 0:00:00]} Qg7 {[%emt 0:01:03]} 45. Qd6+ {[%emt 0:00:00]} Qg6 {[%emt 0:00:48]} 46. Qf8+ {[%emt 0:00:00]} Qg7 {[%emt 0:03:21]} 47. Qd6+ {[%emt 0:00:00]} Qg6 {[%emt 0:00:18]} 48. Qf8+ {[%emt 0:00:00]} 1/2-1/2

[Event "26th OIBM 2023"]
[Site "Gmund am Tegernsee"]
[Date "2023.11.02"]
[Round "6.29"]
[White "Gohla, Ulf"]
[Black "Garner, Isaac"]
[Result "0-1"]
[ECO "E32"]
[WhiteElo "2102"]
[BlackElo "2309"]
[Annotator "ChessBase"]
[PlyCount "78"]
[EventDate "2023.10.04"]
[EventType "swiss"]
[EventCountry "GER"]
[SourceTitle "playchess.com"]
[Source "ChessBase"]
[SourceQuality "1"]
[TimeControl "40/5400+30:1800+30"]

1. d4 {[%emt 0:00:01]} Nf6 {[%emt 0:00:31]} 2. c4 {[%emt 0:00:02]} e6 {[%emt 0:00:07]} 3. Nc3 {[%emt 0:00:03]} Bb4 {[%emt 0:00:04]} 4. Qc2 {[%emt 0:00:03]} d6 {[%emt 0:00:03]} 5. Nf3 {[%emt 0:04:28]} O-O {[%emt 0:00:43]} 6. g3 {[%emt 0:00:29]} e5 {[%emt 0:00:09]} 7. dxe5 {[%emt 0:01:24]} dxe5 {[%emt 0:00:06]} 8. a3 {[%emt 0:05:00]} Bxc3+ {[%emt 0:00:33]} 9. Qxc3 {[%emt 0:00:06]} Nc6 {[%emt 0:02:01]} 10. Bg5 {[%emt 0:17:43]} h6 {[%emt 0:09:15]} 11. Rd1 {[%emt 0:03:21]} Qe7 {[%emt 0:00:19]} 12. Bxf6 {[%emt 0:01:54]} Qxf6 {[%emt 0:00:10]} 13. Bg2 {[%emt 0:00:11]} Bf5 {[%emt 0:06:31]} 14. O-O {[%emt 0:07:05]} Rad8 {[%emt 0:02:03]} 15. Qb3 {[%emt 0:10:49]} b6 {[%emt 0:10:01]} 16. Rxd8 {[%emt 0:14:20]} Rxd8 {[%emt 0:02:24]} 17. Rd1 {[%emt 0:01:24]} Nd4 {[%emt 0:11:14]} 18. Nxd4 {[%emt 0:00:31]} exd4 {[%emt 0:00:06]} 19. Qf3 {[%emt 0:06:47]} Qe5 {[%emt 0:15:14]} 20. e3 {[%emt 0:03:48]} c5 {[%emt 0:06:43]} 21. exd4 {[%emt 0:00:59]} cxd4 {[%emt 0:00:44]} 22. Bf1 {[%emt 0:01:27]} d3 {[%emt 0:02:45]} 23. Rd2 {[%emt 0:00:41]} Rd4 {[%emt 0:09:33]} 24. h4 {[%emt 0:02:07]} Be4 {[%emt 0:01:39]} 25. Qe3 {[%emt 0:00:52]} Qd6 {[%emt 0:00:09]} 26. b3 {[%emt 0:01:08]} Qd7 {[%emt 0:02:20]} 27. f3 {[%emt 0:01:21]} Bf5 {[%emt 0:02:04]} 28. Kf2 {[%emt 0:02:53]} Rd6 {[%emt 0:03:06]} 29. Qe5 {[%emt 0:01:08]} Re6 {[%emt 0:02:56]} 30. Qb5 {[%emt 0:03:31]} Qd4+ {[%emt 0:02:06]} 31. Kg2 {[%emt 0:00:01]} Qe3 {[%emt 0:00:53]} 32. Rd1 {[%emt 0:05:44]} Be4 {[%emt 0:06:09]} 33. fxe4 {[%emt 0:00:33]} Rf6 {[%emt 0:00:16]} 34. Qh5 {[%emt 0:02:49]} g6 {[%emt 0:01:59]} 35. Qg4 {[%emt 0:00:44]} h5 {[%emt 0:00:27]} 36. Qg5 {[%emt 0:01:08]} Rf2+ {[%emt 0:00:31]} 37. Kh3 {[%emt 0:01:33]} Qf3 {[%emt 0:00:05]} 38. Qd8+ {[%emt 0:00:38]} Kh7 {[%emt 0:00:05]} 39. Bxd3 {[%emt 0:00:09]} Qg4# {[%emt 0:03:56]} 0-1

[Event "26th OIBM 2023"]
[Site "Gmund am Tegernsee"]
[Date "2023.11.02"]
[Round "6.30"]
[White "Ernst, Robert"]
[Black "Linster, Philippe"]
[Result "1/2-1/2"]
[ECO "E48"]
[WhiteElo "2093"]
[BlackElo "2303"]
[Annotator "ChessBase"]
[PlyCount "22"]
[EventDate "2023.10.04"]
[EventType "swiss"]
[EventCountry "GER"]
[SourceTitle "playchess.com"]
[Source "ChessBase"]
[SourceQuality "1"]
[TimeControl "40/5400+30:1800+30"]

1. d4 {[%emt 0:00:04]} Nf6 {[%emt 0:00:06]} 2. c4 {[%emt 0:00:12]} e6 {[%emt 0:00:08]} 3. Nc3 {[%emt 0:00:07]} Bb4 {[%emt 0:00:07]} 4. e3 {[%emt 0:00:08]} O-O {[%emt 0:00:46]} 5. Bd3 {[%emt 0:00:07]} c5 {[%emt 0:01:14]} 6. Nge2 {[%emt 0:00:09]} d5 {[%emt 0:00:50]} 7. cxd5 {[%emt 0:00:11]} cxd4 {[%emt 0:00:42]} 8. exd4 {[%emt 0:00:11]} Nxd5 {[%emt 0:00:55]} 9. O-O {[%emt 0:00:10]} Nc6 {[%emt 0:01:07]} 10. a3 {[%emt 0:00:35]} Bd6 {[%emt 0:01:23]} 11. Nxd5 {[%emt 0:22:00]} exd5 {[%emt 0:00:08]} 1/2-1/2

[Event "26th OIBM 2023"]
[Site "Gmund am Tegernsee"]
[Date "2023.11.02"]
[Round "6.31"]
[White "Karsay, Pascal"]
[Black "Katter, Katharina"]
[Result "1-0"]
[ECO "E62"]
[WhiteElo "2301"]
[BlackElo "1905"]
[Annotator "ChessBase"]
[PlyCount "111"]
[EventDate "2023.10.04"]
[EventType "swiss"]
[EventCountry "GER"]
[SourceTitle "playchess.com"]
[Source "ChessBase"]
[SourceQuality "1"]
[TimeControl "40/5400+30:1800+30"]

1. Nf3 {[%emt 0:00:07]} Nf6 {[%emt 0:00:12]} 2. c4 {[%emt 0:00:13]} g6 {[%emt 0:00:19]} 3. Nc3 {[%emt 0:00:10]} Bg7 {[%emt 0:00:14]} 4. g3 {[%emt 0:00:20]} O-O {[%emt 0:00:17]} 5. Bg2 {[%emt 0:00:39]} d6 {[%emt 0:00:20]} 6. d4 {[%emt 0:00:16]} Nc6 {[%emt 0:00:30]} 7. O-O {[%emt 0:00:15]} e5 {[%emt 0:00:19]} 8. dxe5 {[%emt 0:01:30]} dxe5 {[%emt 0:00:24]} 9. Bg5 {[%emt 0:01:00]} Be6 {[%emt 0:00:40]} 10. Qc1 {[%emt 0:09:29]} Qc8 {[%emt 0:00:16]} 11. Rd1 {[%emt 0:04:14]} Re8 {[%emt 0:01:17]} 12. Nd2 {[%emt 0:03:02]} Nd7 {[%emt 0:11:56]} 13. Nde4 {[%emt 0:33:03]} f6 {[%emt 0:15:37]} 14. Rxd7 {[%emt 0:07:27]} Qxd7 {[%emt 0:02:06]} 15. Bxf6 {[%emt 0:06:20]} Bxc4 {[%emt 0:05:59]} 16. Nc5 {[%emt 0:04:40]} Qd4 {[%emt 0:08:50]} 17. Bxg7 {[%emt 0:03:54]} Kxg7 {[%emt 0:02:43]} 18. Nxb7 {[%emt 0:00:39]} Ne7 {[%emt 0:08:27]} 19. e3 {[%emt 0:02:59]} Qb6 {[%emt 0:09:50]} 20. Na4 {[%emt 0:00:30]} Qb5 {[%emt 0:02:52]} 21. Nc3 {[%emt 0:00:09]} Qb6 {[%emt 0:03:19]} 22. b3 {[%emt 0:00:05]} c6 {[%emt 0:03:12]} 23. Nd6 {[%emt 0:00:25]} Bd5 {[%emt 0:05:47]} 24. Nxe8+ {[%emt 0:00:06]} Rxe8 {[%emt 0:00:08]} 25. Na4 {[%emt 0:01:55]} Qb4 {[%emt 0:02:28]} 26. Qc3 {[%emt 0:01:28]} Qxc3 {[%emt 0:02:35]} 27. Nxc3 {[%emt 0:00:09]} Bxg2 {[%emt 0:00:30]} 28. Kxg2 {[%emt 0:00:06]} Rd8 {[%emt 0:00:32]} 29. Ne4 {[%emt 0:01:45]} h6 {[%emt 0:02:26]} 30. Rc1 {[%emt 0:00:15]} Kf7 {[%emt 0:00:24]} 31. Kf3 {[%emt 0:01:08]} Ke6 {[%emt 0:00:24]} 32. Ke2 {[%emt 0:01:02]} g5 {[%emt 0:02:52]} 33. Nc5+ {[%emt 0:01:53]} Kf5 {[%emt 0:00:51]} 34. e4+ {[%emt 0:01:59]} Kf6 {[%emt 0:00:48]} 35. Nd3 {[%emt 0:03:22]} Rb8 {[%emt 0:01:24]} 36. h3 {[%emt 0:01:36]} h5 {[%emt 0:00:40]} 37. Nb2 {[%emt 0:01:59]} Ke6 {[%emt 0:00:43]} 38. Rd1 {[%emt 0:00:22]} Rf8 {[%emt 0:00:54]} 39. Nc4 {[%emt 0:00:29]} Nc8 {[%emt 0:00:33]} 40. Na5 {[%emt 0:01:05]} Ne7 {[%emt 0:00:33]} 41. Nb7 {[%emt 0:33:40]} Rb8 {[%emt 0:15:16]} 42. Nd8+ {[%emt 0:00:00]} Kf6 {[%emt 0:03:19]} 43. Rd6+ {[%emt 0:00:00]} Kg7 {[%emt 0:00:38]} 44. Nxc6 {[%emt 0:00:00]} Nxc6 {[%emt 0:01:11]} 45. Rxc6 {[%emt 0:00:00]} Rb7 {[%emt 0:00:49]} 46. Re6 {[%emt 0:00:00]} Rc7 {[%emt 0:00:26]} 47. Rxe5 {[%emt 0:00:00]} Rc2+ {[%emt 0:00:20]} 48. Ke3 {[%emt 0:00:00]} Rxa2 {[%emt 0:00:16]} 49. Rxg5+ {[%emt 0:00:00]} Kh6 {[%emt 0:00:10]} 50. h4 {[%emt 0:00:00]} a5 {[%emt 0:01:02]} 51. f3 {[%emt 0:00:00]} Ra3 {[%emt 0:00:31]} 52. Kf4 {[%emt 0:00:00]} Ra1 {[%emt 0:01:08]} 53. Rb5 {[%emt 0:00:00]} Kg6 {[%emt 0:09:59]} 54. Rg5+ {[%emt 0:00:00]} Kh6 {[%emt 0:00:26]} 55. Rb5 {[%emt 0:00:00]} Kg6 {[%emt 0:02:29]} 56. g4 {[%emt 0:00:00]} 1-0